[Event "January 2 Late 2024"]
[Site "https://www.chess.com"]
[Date "2024.01.02"]
[Round "10"]
[White "Czarnota, Pawel"]
[Black "Matlakov, Maxim"]
[Result "1-0"]
[Board "17"]
[TimeControl "180+1"]
[WhiteFideId "1121219"]
[BlackFideId "4168003"]
[WhiteElo "2847"]
[BlackElo "2965"]
[WhiteTeam "POL"]
[BlackTeam "RUS"]
[WhiteClock "0:00:38"]
[BlackClock "0:00:00"]

1. e4 {[%clk 0:03:00]}  c5 {[%clk 0:02:57]} 2. Nf3 {[%clk 0:03:01]}  e6 {[%clk 0:02:57]} 3. d4 {[%clk 0:03:01]}  cxd4 {[%clk 0:02:57]} 4. Nxd4 {[%clk 0:03:02]}  Nc6 {[%clk 0:02:56]} 5. Nc3 {[%clk 0:03:02]}  Qc7 {[%clk 0:02:57]} 6. Be2 {[%clk 0:03:02]}  Nf6 {[%clk 0:02:56]} 7. O-O {[%clk 0:03:03]}  a6 {[%clk 0:02:55]} 8. Be3 {[%clk 0:03:01]}  Be7 {[%clk 0:02:55]} 9. f4 {[%clk 0:03:01]}  d6 {[%clk 0:02:55]} 10. a4 {[%clk 0:03:01]}  O-O {[%clk 0:02:55]} 11. Kh1 {[%clk 0:03:01]}  Nxd4 {[%clk 0:02:51]} 12. Qxd4 {[%clk 0:02:58]}  Bd7 {[%clk 0:02:51]} 13. Bf3 {[%clk 0:02:49]}  Bc6 {[%clk 0:02:51]} 14. Rfd1 {[%clk 0:02:48]}  e5 {[%clk 0:02:40]} 15. Qd2 {[%clk 0:02:33]}  b5 {[%clk 0:02:37]} 16. axb5 {[%clk 0:02:24]}  axb5 {[%clk 0:02:38]} 17. Rxa8 {[%clk 0:02:24]}  Rxa8 {[%clk 0:02:39]} 18. fxe5 {[%clk 0:02:24]}  dxe5 {[%clk 0:02:38]} 19. Nd5 {[%clk 0:02:25]}  Bxd5 {[%clk 0:02:37]} 20. exd5 {[%clk 0:02:24]}  Bd6 {[%clk 0:02:24]} 21. Bg5 {[%clk 0:02:20]}  Nd7 {[%clk 0:02:06]} 22. Qe2 {[%clk 0:02:11]}  b4 {[%clk 0:02:01]} 23. Be4 {[%clk 0:02:09]}  Nc5 {[%clk 0:01:57]} 24. g3 {[%clk 0:02:01]}  g6 {[%clk 0:01:21]} 25. Bg2 {[%clk 0:01:53]}  f5 {[%clk 0:01:19]} 26. Qb5 {[%clk 0:01:44]}  e4 {[%clk 0:01:11]} 27. Qc6 {[%clk 0:01:34]}  Rc8 {[%clk 0:01:09]} 28. Qxc7 {[%clk 0:01:30]}  Rxc7 {[%clk 0:01:10]} 29. Bf1 {[%clk 0:01:29]}  Na4 {[%clk 0:01:09]} 30. Bf6 {[%clk 0:01:13]}  Rxc2 {[%clk 0:01:06]} 31. Ra1 {[%clk 0:01:09]}  Nc5 {[%clk 0:00:48]} 32. Bb5 {[%clk 0:01:05]}  Kf7 {[%clk 0:00:43]} 33. Bd4 {[%clk 0:01:03]}  Nb3 {[%clk 0:00:40]} 34. Ra7+ {[%clk 0:01:02]}  Rc7 {[%clk 0:00:40]} 35. Rxc7+ {[%clk 0:00:59]}  Bxc7 {[%clk 0:00:41]} 36. d6 {[%clk 0:01:00]}  Bxd6 {[%clk 0:00:24]} 37. Bc4+ {[%clk 0:01:00]}  Ke7 {[%clk 0:00:22]} 38. Bxb3 {[%clk 0:01:01]}  g5 {[%clk 0:00:16]} 39. Kg2 {[%clk 0:00:58]}  h5 {[%clk 0:00:15]} 40. Bd5 {[%clk 0:00:56]}  g4 {[%clk 0:00:13]} 41. b3 {[%clk 0:00:55]}  Kd7 {[%clk 0:00:06]} 42. Bf6 {[%clk 0:00:50]}  Ke8 {[%clk 0:00:04]} 43. Be6 {[%clk 0:00:50]}  f4 {[%clk 0:00:04]} 44. gxf4 {[%clk 0:00:50]}  Bxf4 {[%clk 0:00:05]} 45. Bf5 {[%clk 0:00:50]}  e3 {[%clk 0:00:05]} 46. Bg6+ {[%clk 0:00:47]}  Kd7 {[%clk 0:00:04]} 47. Bxh5 {[%clk 0:00:47]}  Ke6 {[%clk 0:00:04]} 48. Bh4 {[%clk 0:00:44]}  Kf5 {[%clk 0:00:04]} 49. Be1 {[%clk 0:00:41]}  e2 {[%clk 0:00:04]} 50. Bxb4 {[%clk 0:00:40]}  Bg5 {[%clk 0:00:02]} 51. Be1 {[%clk 0:00:39]}  Kf4 {[%clk 0:00:02]} 52. Kf2 {[%clk 0:00:38]}  Bh4+ {[%clk 0:00:00]} 53. Kxe2 {[%clk 0:00:38]} 1-0

[Event "January 2 Late 2024"]
[Site "https://www.chess.com"]
[Date "2024.01.02"]
[Round "10"]
[White "Kramnik, Vladimir"]
[Black "Mekhitarian, Krikor Sevag"]
[Result "0-1"]
[Board "18"]
[TimeControl "180+1"]
[WhiteFideId "4101588"]
[BlackFideId "2107660"]
[WhiteElo "2965"]
[BlackElo "2838"]
[WhiteTeam "RUS"]
[BlackTeam "BRA"]
[WhiteClock "0:00:00"]
[BlackClock "0:00:04"]

1. e4 {[%clk 0:03:00]}  e6 {[%clk 0:02:59]} 2. d4 {[%clk 0:02:59]}  d5 {[%clk 0:03:00]} 3. exd5 {[%clk 0:02:59]}  exd5 {[%clk 0:03:00]} 4. Nf3 {[%clk 0:03:00]}  Nc6 {[%clk 0:02:59]} 5. Nc3 {[%clk 0:02:55]}  Bb4 {[%clk 0:02:58]} 6. Bd3 {[%clk 0:02:53]}  Nge7 {[%clk 0:02:57]} 7. O-O {[%clk 0:02:53]}  Bg4 {[%clk 0:02:58]} 8. Be3 {[%clk 0:02:39]}  Qd7 {[%clk 0:02:45]} 9. h3 {[%clk 0:02:38]}  Bf5 {[%clk 0:02:41]} 10. Ne2 {[%clk 0:02:30]}  Bd6 {[%clk 0:02:33]} 11. Re1 {[%clk 0:02:23]}  O-O {[%clk 0:02:33]} 12. c3 {[%clk 0:02:18]}  Rfe8 {[%clk 0:02:33]} 13. Bf4 {[%clk 0:02:15]}  Bxd3 {[%clk 0:02:19]} 14. Qxd3 {[%clk 0:02:15]}  Ng6 {[%clk 0:02:20]} 15. Bxd6 {[%clk 0:02:10]}  Qxd6 {[%clk 0:02:20]} 16. g3 {[%clk 0:02:07]}  Qd7 {[%clk 0:02:14]} 17. Kg2 {[%clk 0:02:05]}  Nce7 {[%clk 0:02:08]} 18. Neg1 {[%clk 0:01:56]}  f6 {[%clk 0:02:01]} 19. Re2 {[%clk 0:01:50]}  Nf5 {[%clk 0:01:57]} 20. Rae1 {[%clk 0:01:45]}  Nd6 {[%clk 0:01:47]} 21. Nd2 {[%clk 0:01:36]}  Rxe2 {[%clk 0:01:40]} 22. Rxe2 {[%clk 0:01:35]}  Re8 {[%clk 0:01:40]} 23. h4 {[%clk 0:01:29]}  Rxe2 {[%clk 0:01:21]} 24. Qxe2 {[%clk 0:01:17]}  Ne7 {[%clk 0:01:18]} 25. Nh3 {[%clk 0:01:12]}  c6 {[%clk 0:01:15]} 26. Nf4 {[%clk 0:01:10]}  Ng6 {[%clk 0:01:05]} 27. Nd3 {[%clk 0:01:07]}  b6 {[%clk 0:00:48]} 28. h5 {[%clk 0:01:06]}  Ne7 {[%clk 0:00:47]} 29. Nf4 {[%clk 0:00:59]}  Kf7 {[%clk 0:00:47]} 30. g4 {[%clk 0:00:50]}  Nec8 {[%clk 0:00:19]} 31. f3 {[%clk 0:00:45]}  Qe8 {[%clk 0:00:15]} 32. Qd3 {[%clk 0:00:43]}  Kg8 {[%clk 0:00:15]} 33. Kf2 {[%clk 0:00:39]}  h6 {[%clk 0:00:14]} 34. Nf1 {[%clk 0:00:29]}  f5 {[%clk 0:00:09]} 35. Qe3 {[%clk 0:00:27]}  Qxe3+ {[%clk 0:00:05]} 36. Nxe3 {[%clk 0:00:28]}  fxg4 {[%clk 0:00:06]} 37. fxg4 {[%clk 0:00:28]}  Kf7 {[%clk 0:00:05]} 38. Kf3 {[%clk 0:00:27]}  Ne7 {[%clk 0:00:05]} 39. b3 {[%clk 0:00:23]}  Kf6 {[%clk 0:00:04]} 40. c4 {[%clk 0:00:22]}  dxc4 {[%clk 0:00:04]} 41. bxc4 {[%clk 0:00:22]}  g6 {[%clk 0:00:04]} 42. hxg6 {[%clk 0:00:20]}  Nxg6 {[%clk 0:00:04]} 43. Nxg6 {[%clk 0:00:19]}  Kxg6 {[%clk 0:00:04]} 44. Kf4 {[%clk 0:00:19]}  Kf6 {[%clk 0:00:04]} 45. a4 {[%clk 0:00:18]}  Ke6 {[%clk 0:00:03]} 46. d5+ {[%clk 0:00:14]}  cxd5 {[%clk 0:00:02]} 47. cxd5+ {[%clk 0:00:15]}  Kf6 {[%clk 0:00:03]} 48. Nf5 {[%clk 0:00:12]}  Nf7 {[%clk 0:00:01]} 49. Ke4 {[%clk 0:00:08]}  a6 {[%clk 0:00:01]} 50. Ne3 {[%clk 0:00:05]}  Nd6+ {[%clk 0:00:01]} 51. Kd4 {[%clk 0:00:04]}  Nf7 {[%clk 0:00:01]} 52. Nc4 {[%clk 0:00:04]}  b5 {[%clk 0:00:01]} 53. axb5 {[%clk 0:00:04]}  axb5 {[%clk 0:00:02]} 54. Ne3 {[%clk 0:00:03]}  Kg5 {[%clk 0:00:02]} 55. Kc5 {[%clk 0:00:03]}  Kf4 {[%clk 0:00:03]} 56. Nc2 {[%clk 0:00:02]}  Kxg4 {[%clk 0:00:03]} 57. Kxb5 {[%clk 0:00:02]}  h5 {[%clk 0:00:03]} 58. Ne3+ {[%clk 0:00:01]}  Kg5 {[%clk 0:00:04]} 59. Ng2 {[%clk 0:00:01]}  Ne5 {[%clk 0:00:03]} 60. Kc5 {[%clk 0:00:01]}  Kg4 {[%clk 0:00:04]} 61. d6 {[%clk 0:00:01]}  Nf7 {[%clk 0:00:03]} 62. Kd5 {[%clk 0:00:00]}  Kg3 {[%clk 0:00:04]} 0-1

[Event "January 2 Late 2024"]
[Site "https://www.chess.com"]
[Date "2024.01.02"]
[Round "10"]
[White "Troff, Kayden"]
[Black "Kamsky, Gata"]
[Result "1-0"]
[Board "19"]
[TimeControl "180+1"]
[WhiteFideId "2047896"]
[BlackFideId "2000024"]
[WhiteElo "2810"]
[BlackElo "2963"]
[WhiteTeam "USA"]
[BlackTeam "USA"]
[WhiteClock "0:00:07"]
[BlackClock "0:00:14"]

1. d4 {[%clk 0:02:57]}  d5 {[%clk 0:02:57]} 2. Nf3 {[%clk 0:02:57]}  Nf6 {[%clk 0:02:57]} 3. Bf4 {[%clk 0:02:57]}  e6 {[%clk 0:02:45]} 4. e3 {[%clk 0:02:57]}  Bd6 {[%clk 0:02:46]} 5. Ne5 {[%clk 0:02:57]}  O-O {[%clk 0:02:42]} 6. Bd3 {[%clk 0:02:56]}  c5 {[%clk 0:02:42]} 7. c3 {[%clk 0:02:57]}  Qc7 {[%clk 0:02:39]} 8. Bg3 {[%clk 0:02:57]}  Nfd7 {[%clk 0:02:37]} 9. f4 {[%clk 0:02:57]}  Nc6 {[%clk 0:02:27]} 10. Nd2 {[%clk 0:02:39]}  Ne7 {[%clk 0:02:24]} 11. Qh5 {[%clk 0:02:36]}  f5 {[%clk 0:02:15]} 12. Bh4 {[%clk 0:02:30]}  Nf6 {[%clk 0:02:13]} 13. Bxf6 {[%clk 0:02:26]}  gxf6 {[%clk 0:02:12]} 14. Nef3 {[%clk 0:02:09]}  e5 {[%clk 0:02:07]} 15. fxe5 {[%clk 0:02:07]}  fxe5 {[%clk 0:02:06]} 16. dxe5 {[%clk 0:02:07]}  Bxe5 {[%clk 0:02:05]} 17. O-O-O {[%clk 0:02:03]}  Bg7 {[%clk 0:02:02]} 18. g4 {[%clk 0:01:58]}  Qd6 {[%clk 0:01:56]} 19. Rhg1 {[%clk 0:01:44]}  Qh6 {[%clk 0:01:52]} 20. Qxh6 {[%clk 0:01:42]}  Bxh6 {[%clk 0:01:53]} 21. gxf5+ {[%clk 0:01:41]}  Kh8 {[%clk 0:01:53]} 22. Kb1 {[%clk 0:01:19]}  Bxf5 {[%clk 0:01:46]} 23. e4 {[%clk 0:00:52]}  Bg6 {[%clk 0:01:37]} 24. Ne5 {[%clk 0:00:41]}  Bxd2 {[%clk 0:01:32]} 25. Nxg6+ {[%clk 0:00:41]}  Nxg6 {[%clk 0:01:32]} 26. Rxd2 {[%clk 0:00:41]}  d4 {[%clk 0:01:27]} 27. cxd4 {[%clk 0:00:41]}  cxd4 {[%clk 0:01:26]} 28. a3 {[%clk 0:00:23]}  Ne5 {[%clk 0:01:25]} 29. Rg3 {[%clk 0:00:21]}  Rad8 {[%clk 0:01:22]} 30. Bc2 {[%clk 0:00:15]}  Rg8 {[%clk 0:01:19]} 31. Rxg8+ {[%clk 0:00:13]}  Kxg8 {[%clk 0:01:18]} 32. Bb3+ {[%clk 0:00:14]}  Kg7 {[%clk 0:01:18]} 33. Bd5 {[%clk 0:00:15]}  d3 {[%clk 0:01:18]} 34. Bxb7 {[%clk 0:00:15]}  Nc4 {[%clk 0:01:13]} 35. Rd1 {[%clk 0:00:15]}  Ne3 {[%clk 0:01:13]} 36. Rd2 {[%clk 0:00:15]}  Nc4 {[%clk 0:01:09]} 37. Rd1 {[%clk 0:00:16]}  Kf6 {[%clk 0:01:03]} 38. Bd5 {[%clk 0:00:15]}  Ne5 {[%clk 0:01:01]} 39. Rf1+ {[%clk 0:00:15]}  Ke7 {[%clk 0:01:00]} 40. Rf2 {[%clk 0:00:08]}  Rc8 {[%clk 0:00:59]} 41. b4 {[%clk 0:00:08]}  Nc4 {[%clk 0:00:52]} 42. Bxc4 {[%clk 0:00:07]}  Rxc4 {[%clk 0:00:52]} 43. Rd2 {[%clk 0:00:08]}  Rxe4 {[%clk 0:00:52]} 44. Rxd3 {[%clk 0:00:08]}  a5 {[%clk 0:00:47]} 45. bxa5 {[%clk 0:00:04]}  Ra4 {[%clk 0:00:47]} 46. Rh3 {[%clk 0:00:04]}  Kf6 {[%clk 0:00:44]} 47. Rxh7 {[%clk 0:00:04]}  Rxa5 {[%clk 0:00:38]} 48. Rh3 {[%clk 0:00:04]}  Kg5 {[%clk 0:00:37]} 49. Kb2 {[%clk 0:00:04]}  Kg4 {[%clk 0:00:35]} 50. Rb3 {[%clk 0:00:04]}  Kf4 {[%clk 0:00:33]} 51. h4 {[%clk 0:00:04]}  Ke4 {[%clk 0:00:32]} 52. Rh3 {[%clk 0:00:04]}  Rh5 {[%clk 0:00:31]} 53. Kb3 {[%clk 0:00:05]}  Kd4 {[%clk 0:00:30]} 54. Kb4 {[%clk 0:00:05]}  Rh8 {[%clk 0:00:29]} 55. a4 {[%clk 0:00:05]}  Rb8+ {[%clk 0:00:28]} 56. Ka3 {[%clk 0:00:06]}  Kc5 {[%clk 0:00:26]} 57. h5 {[%clk 0:00:06]}  Rh8 {[%clk 0:00:25]} 58. h6 {[%clk 0:00:06]}  Rh7 {[%clk 0:00:14]} 59. Kb3 {[%clk 0:00:07]} 1-0

[Event "January 2 Late 2024"]
[Site "https://www.chess.com"]
[Date "2024.01.02"]
[Round "10"]
[White "Duda, Jan-Krzysztof"]
[Black "Tari, Aryan"]
[Result "1-0"]
[Board "22"]
[TimeControl "180+1"]
[WhiteFideId "1170546"]
[BlackFideId "1510045"]
[WhiteElo "3033"]
[BlackElo "2912"]
[WhiteTeam "POL"]
[BlackTeam "NOR"]
[WhiteClock "0:00:02"]
[BlackClock "0:00:01"]

1. e4 {[%clk 0:03:00]}  e5 {[%clk 0:02:59]} 2. f4 {[%clk 0:03:01]}  d5 {[%clk 0:02:56]} 3. exd5 {[%clk 0:02:59]}  exf4 {[%clk 0:02:56]} 4. Nf3 {[%clk 0:03:00]}  Nf6 {[%clk 0:02:56]} 5. Bb5+ {[%clk 0:02:59]}  c6 {[%clk 0:02:56]} 6. dxc6 {[%clk 0:02:58]}  Nxc6 {[%clk 0:02:52]} 7. Nc3 {[%clk 0:02:54]}  Be6 {[%clk 0:02:30]} 8. Qe2 {[%clk 0:02:25]}  Be7 {[%clk 0:02:19]} 9. d4 {[%clk 0:02:14]}  O-O {[%clk 0:02:14]} 10. Bxc6 {[%clk 0:02:13]}  bxc6 {[%clk 0:02:13]} 11. Bxf4 {[%clk 0:02:14]}  Qb6 {[%clk 0:01:51]} 12. O-O-O {[%clk 0:02:08]}  Bb4 {[%clk 0:01:42]} 13. Na4 {[%clk 0:02:00]}  Qa5 {[%clk 0:01:03]} 14. b3 {[%clk 0:02:01]}  Nd5 {[%clk 0:00:55]} 15. Qe5 {[%clk 0:01:09]}  Ba3+ {[%clk 0:00:53]} 16. Kb1 {[%clk 0:01:06]}  Rab8 {[%clk 0:00:27]} 17. Nb2 {[%clk 0:00:44]}  Nc3+ {[%clk 0:00:19]} 18. Ka1 {[%clk 0:00:42]}  Bc5 {[%clk 0:00:11]} 19. Na4 {[%clk 0:00:36]}  Nxa4 {[%clk 0:00:11]} 20. dxc5 {[%clk 0:00:30]}  Nc3 {[%clk 0:00:12]} 21. Kb2 {[%clk 0:00:27]}  Nxd1+ {[%clk 0:00:02]} 22. Rxd1 {[%clk 0:00:28]}  Rbd8 {[%clk 0:00:01]} 23. Rd6 {[%clk 0:00:24]}  Rxd6 {[%clk 0:00:01]} 24. Qxd6 {[%clk 0:00:22]}  Bd5 {[%clk 0:00:02]} 25. Nd4 {[%clk 0:00:21]}  Qd8 {[%clk 0:00:02]} 26. g4 {[%clk 0:00:16]}  Re8 {[%clk 0:00:02]} 27. Nf5 {[%clk 0:00:10]}  Qf6+ {[%clk 0:00:02]} 28. Qxf6 {[%clk 0:00:02]}  gxf6 {[%clk 0:00:03]} 29. c4 {[%clk 0:00:02]}  Re2+ {[%clk 0:00:03]} 30. Kc3 {[%clk 0:00:02]}  Be4 {[%clk 0:00:04]} 31. Nd6 {[%clk 0:00:02]}  Bf3 {[%clk 0:00:03]} 32. a4 {[%clk 0:00:01]}  Rg2 {[%clk 0:00:03]} 33. b4 {[%clk 0:00:02]}  Rxg4 {[%clk 0:00:04]} 34. Bg3 {[%clk 0:00:02]}  h5 {[%clk 0:00:03]} 35. b5 {[%clk 0:00:02]}  h4 {[%clk 0:00:04]} 36. b6 {[%clk 0:00:02]}  hxg3 {[%clk 0:00:03]} 37. hxg3 {[%clk 0:00:01]}  axb6 {[%clk 0:00:03]} 38. cxb6 {[%clk 0:00:02]}  c5 {[%clk 0:00:03]} 39. a5 {[%clk 0:00:03]}  Rxg3 {[%clk 0:00:04]} 40. Kd2 {[%clk 0:00:03]}  Bc6 {[%clk 0:00:02]} 41. a6 {[%clk 0:00:03]}  Rb3 {[%clk 0:00:02]} 42. b7 {[%clk 0:00:03]}  Rb6 {[%clk 0:00:01]} 43. a7 {[%clk 0:00:02]}  Rxb7 {[%clk 0:00:02]} 44. a8=Q+ {[%clk 0:00:02]}  Kg7 {[%clk 0:00:01]} 45. Nxb7 {[%clk 0:00:02]} 1-0

[Event "January 2 Late 2024"]
[Site "https://www.chess.com"]
[Date "2024.01.02"]
[Round "10"]
[White "Riff, Vincent"]
[Black "Yoo, Christopher Woojin"]
[Result "0-1"]
[Board "24"]
[TimeControl "180+1"]
[WhiteFideId "617776"]
[BlackFideId "30909694"]
[WhiteElo "2698"]
[BlackElo "2922"]
[WhiteTeam "FRA"]
[BlackTeam "USA"]
[WhiteClock "0:00:02"]
[BlackClock "0:01:45"]

1. e4 {[%clk 0:03:00]}  Nf6 {[%clk 0:03:00]} 2. e5 {[%clk 0:03:00]}  Nd5 {[%clk 0:03:00]} 3. d4 {[%clk 0:03:00]}  d6 {[%clk 0:03:01]} 4. Nf3 {[%clk 0:03:01]}  g6 {[%clk 0:03:01]} 5. Bc4 {[%clk 0:02:54]}  Nb6 {[%clk 0:03:00]} 6. Bb3 {[%clk 0:02:55]}  Bg7 {[%clk 0:03:01]} 7. h3 {[%clk 0:02:55]}  O-O {[%clk 0:03:00]} 8. O-O {[%clk 0:02:55]}  Nc6 {[%clk 0:02:57]} 9. exd6 {[%clk 0:02:55]}  cxd6 {[%clk 0:02:56]} 10. c3 {[%clk 0:02:53]}  Bf5 {[%clk 0:02:57]} 11. Re1 {[%clk 0:02:51]}  e5 {[%clk 0:02:56]} 12. Bg5 {[%clk 0:02:51]}  Qc7 {[%clk 0:02:56]} 13. Nbd2 {[%clk 0:02:43]}  h6 {[%clk 0:02:53]} 14. Be3 {[%clk 0:02:43]}  Na5 {[%clk 0:02:53]} 15. dxe5 {[%clk 0:02:19]}  dxe5 {[%clk 0:02:51]} 16. Bxb6 {[%clk 0:02:16]}  axb6 {[%clk 0:02:52]} 17. Bc2 {[%clk 0:02:13]}  Be6 {[%clk 0:02:52]} 18. Qe2 {[%clk 0:02:09]}  Nc6 {[%clk 0:02:51]} 19. Bb3 {[%clk 0:02:06]}  Bxb3 {[%clk 0:02:51]} 20. axb3 {[%clk 0:02:04]}  f5 {[%clk 0:02:50]} 21. Nc4 {[%clk 0:01:32]}  e4 {[%clk 0:02:46]} 22. Nh2 {[%clk 0:01:29]}  Kh7 {[%clk 0:02:38]} 23. Ne3 {[%clk 0:01:27]}  Ne5 {[%clk 0:02:37]} 24. Nd5 {[%clk 0:01:26]}  Qc6 {[%clk 0:02:36]} 25. c4 {[%clk 0:01:26]}  Nd3 {[%clk 0:02:35]} 26. Rxa8 {[%clk 0:01:18]}  Rxa8 {[%clk 0:02:34]} 27. Rd1 {[%clk 0:01:18]}  Nxb2 {[%clk 0:02:34]} 28. Rb1 {[%clk 0:01:16]}  Nd3 {[%clk 0:02:34]} 29. Nf1 {[%clk 0:01:11]}  Qc5 {[%clk 0:02:28]} 30. Nfe3 {[%clk 0:01:07]}  Qd4 {[%clk 0:02:26]} 31. Nc7 {[%clk 0:01:02]}  Ra1 {[%clk 0:02:25]} 32. Rf1 {[%clk 0:00:56]}  Rxf1+ {[%clk 0:02:23]} 33. Nxf1 {[%clk 0:00:57]}  Qa1 {[%clk 0:02:21]} 34. Ne6 {[%clk 0:00:55]}  Be5 {[%clk 0:02:21]} 35. g3 {[%clk 0:00:46]}  Qc1 {[%clk 0:02:11]} 36. Kg2 {[%clk 0:00:43]}  Ne1+ {[%clk 0:02:11]} 37. Kg1 {[%clk 0:00:41]}  Kg8 {[%clk 0:02:06]} 38. Qe3 {[%clk 0:00:36]}  Qxe3 {[%clk 0:02:04]} 39. Nxe3 {[%clk 0:00:36]}  Nf3+ {[%clk 0:02:05]} 40. Kg2 {[%clk 0:00:35]}  Nd4 {[%clk 0:02:00]} 41. Nxd4 {[%clk 0:00:31]}  Bxd4 {[%clk 0:02:01]} 42. Nd5 {[%clk 0:00:32]}  Kf7 {[%clk 0:02:01]} 43. f3 {[%clk 0:00:32]}  exf3+ {[%clk 0:02:01]} 44. Kxf3 {[%clk 0:00:32]}  g5 {[%clk 0:02:01]} 45. g4 {[%clk 0:00:32]}  Ke6 {[%clk 0:01:59]} 46. Nc7+ {[%clk 0:00:30]}  Ke5 {[%clk 0:01:59]} 47. Nd5 {[%clk 0:00:29]}  fxg4+ {[%clk 0:01:53]} 48. hxg4 {[%clk 0:00:29]}  Bc5 {[%clk 0:01:47]} 49. b4 {[%clk 0:00:25]}  Bd6 {[%clk 0:01:47]} 50. b5 {[%clk 0:00:17]}  Bc5 {[%clk 0:01:46]} 51. Nc7 {[%clk 0:00:14]}  Kd4 {[%clk 0:01:45]} 52. Kg3 {[%clk 0:00:03]}  Bd6+ {[%clk 0:01:44]} 53. Kf3 {[%clk 0:00:02]}  Bxc7 {[%clk 0:01:45]} 0-1

[Event "January 2 Late 2024"]
[Site "https://www.chess.com"]
[Date "2024.01.02"]
[Round "10"]
[White "Kukhmazov, Arsen"]
[Black "Do Valle Cardoso, Lucas"]
[Result "1-0"]
[Board "25"]
[TimeControl "180+1"]
[WhiteFideId "24108260"]
[BlackFideId "2163144"]
[WhiteElo "2869"]
[BlackElo "2706"]
[WhiteTeam "FID"]
[BlackTeam "BRA"]
[WhiteClock "0:00:03"]
[BlackClock "0:00:00"]

1. d4 {[%clk 0:03:00]}  d5 {[%clk 0:02:58]} 2. c4 {[%clk 0:03:01]}  dxc4 {[%clk 0:02:58]} 3. e4 {[%clk 0:03:00]}  Nf6 {[%clk 0:02:54]} 4. e5 {[%clk 0:03:00]}  Nd5 {[%clk 0:02:54]} 5. Bxc4 {[%clk 0:03:01]}  Nb6 {[%clk 0:02:53]} 6. Bd3 {[%clk 0:03:01]}  Nc6 {[%clk 0:02:52]} 7. Be3 {[%clk 0:03:01]}  Nb4 {[%clk 0:02:25]} 8. Be4 {[%clk 0:03:01]}  N4d5 {[%clk 0:02:20]} 9. Nc3 {[%clk 0:02:53]}  c6 {[%clk 0:02:19]} 10. Nge2 {[%clk 0:02:52]}  Bg4 {[%clk 0:02:12]} 11. Qc2 {[%clk 0:02:36]}  e6 {[%clk 0:02:07]} 12. Ng3 {[%clk 0:01:50]}  Be7 {[%clk 0:01:53]} 13. h3 {[%clk 0:01:49]}  Nxe3 {[%clk 0:01:53]} 14. fxe3 {[%clk 0:01:49]}  Bh4 {[%clk 0:01:54]} 15. Qf2 {[%clk 0:00:51]}  Bh5 {[%clk 0:01:53]} 16. O-O {[%clk 0:00:50]}  O-O {[%clk 0:01:32]} 17. Kh2 {[%clk 0:00:50]}  f5 {[%clk 0:01:26]} 18. Bf3 {[%clk 0:00:44]}  f4 {[%clk 0:00:26]} 19. exf4 {[%clk 0:00:44]}  Rxf4 {[%clk 0:00:27]} 20. Nce2 {[%clk 0:00:45]}  Rxf3 {[%clk 0:00:20]} 21. gxf3 {[%clk 0:00:44]}  Nd5 {[%clk 0:00:20]} 22. Qg1 {[%clk 0:00:38]}  Bg6 {[%clk 0:00:20]} 23. Ne4 {[%clk 0:00:36]}  Bf5 {[%clk 0:00:16]} 24. Nd6 {[%clk 0:00:34]}  Qf8 {[%clk 0:00:15]} 25. Rac1 {[%clk 0:00:13]}  Be7 {[%clk 0:00:14]} 26. Nxf5 {[%clk 0:00:11]}  Qxf5 {[%clk 0:00:15]} 27. Qg4 {[%clk 0:00:12]}  Qd3 {[%clk 0:00:14]} 28. Qxe6+ {[%clk 0:00:09]}  Kh8 {[%clk 0:00:13]} 29. Rf2 {[%clk 0:00:09]}  Rf8 {[%clk 0:00:08]} 30. Rg1 {[%clk 0:00:09]}  Qe3 {[%clk 0:00:08]} 31. Rfg2 {[%clk 0:00:08]}  g6 {[%clk 0:00:06]} 32. Qg4 {[%clk 0:00:05]}  Rxf3 {[%clk 0:00:06]} 33. Ng3 {[%clk 0:00:04]}  Bg5 {[%clk 0:00:06]} 34. Rf1 {[%clk 0:00:03]}  Rxf1 {[%clk 0:00:04]} 35. Nxf1 {[%clk 0:00:04]}  Bf4+ {[%clk 0:00:04]} 36. Kh1 {[%clk 0:00:04]}  Qe4 {[%clk 0:00:04]} 37. Qe2 {[%clk 0:00:04]}  Qf5 {[%clk 0:00:04]} 38. e6 {[%clk 0:00:03]}  Qxh3+ {[%clk 0:00:04]} 39. Kg1 {[%clk 0:00:03]}  Ne3 {[%clk 0:00:04]} 40. e7 {[%clk 0:00:03]}  Bh2+ {[%clk 0:00:00]} 41. Rxh2 {[%clk 0:00:03]} 1-0

[Event "January 2 Late 2024"]
[Site "https://www.chess.com"]
[Date "2024.01.02"]
[Round "10"]
[White "Spata, German"]
[Black "Panchenko, Dmitry"]
[Result "0-1"]
[Board "28"]
[TimeControl "180+1"]
[WhiteFideId "113026"]
[BlackFideId "4169158"]
[WhiteElo "2657"]
[BlackElo "2821"]
[WhiteTeam "ARG"]
[BlackTeam "RUS"]
[WhiteClock "0:00:00"]
[BlackClock "0:02:36"]

1. d4 {[%clk 0:02:50]}  d5 {[%clk 0:02:57]} 2. Nf3 {[%clk 0:02:48]}  Nf6 {[%clk 0:02:56]} 3. Bf4 {[%clk 0:02:48]}  c5 {[%clk 0:02:55]} 4. c3 {[%clk 0:02:48]}  Nc6 {[%clk 0:02:56]} 5. e3 {[%clk 0:02:48]}  Qb6 {[%clk 0:02:55]} 6. Qb3 {[%clk 0:02:46]}  c4 {[%clk 0:02:55]} 7. Qc2 {[%clk 0:02:47]}  Bf5 {[%clk 0:02:55]} 8. Qc1 {[%clk 0:02:47]}  h6 {[%clk 0:02:55]} 9. h3 {[%clk 0:02:47]}  e6 {[%clk 0:02:55]} 10. Nbd2 {[%clk 0:02:47]}  Be7 {[%clk 0:02:55]} 11. Be2 {[%clk 0:02:48]}  O-O {[%clk 0:02:54]} 12. O-O {[%clk 0:02:48]}  Rfc8 {[%clk 0:02:53]} 13. Bd1 {[%clk 0:02:48]}  Qd8 {[%clk 0:02:53]} 14. Bc2 {[%clk 0:02:49]}  b5 {[%clk 0:02:52]} 15. Ne5 {[%clk 0:02:47]}  Nxe5 {[%clk 0:02:51]} 16. Bxe5 {[%clk 0:02:47]}  Bd3 {[%clk 0:02:48]} 17. Bxf6 {[%clk 0:02:45]}  Bxf6 {[%clk 0:02:48]} 18. Bxd3 {[%clk 0:02:42]}  cxd3 {[%clk 0:02:49]} 19. Qb1 {[%clk 0:02:43]}  b4 {[%clk 0:02:48]} 20. Qxd3 {[%clk 0:02:40]}  bxc3 {[%clk 0:02:48]} 21. bxc3 {[%clk 0:02:41]}  e5 {[%clk 0:02:48]} 22. Rfc1 {[%clk 0:02:34]}  Rab8 {[%clk 0:02:46]} 23. dxe5 {[%clk 0:02:10]}  Bxe5 {[%clk 0:02:47]} 24. Nf3 {[%clk 0:02:10]}  Bf6 {[%clk 0:02:46]} 25. Nd4 {[%clk 0:02:10]}  Qa5 {[%clk 0:02:45]} 26. a4 {[%clk 0:01:49]}  g6 {[%clk 0:02:44]} 27. c4 {[%clk 0:01:36]}  Qa6 {[%clk 0:02:43]} 28. Rab1 {[%clk 0:01:17]}  dxc4 {[%clk 0:02:41]} 29. Rxb8 {[%clk 0:01:08]}  cxd3 {[%clk 0:02:41]} 30. Rbxc8+ {[%clk 0:01:09]}  Kg7 {[%clk 0:02:39]} 31. R8c3 {[%clk 0:01:05]}  d2 {[%clk 0:02:36]} 32. Rd1 {[%clk 0:00:00]}  Qxa4 {[%clk 0:02:36]} 0-1